fUST/lending_fUST_20241019
["ID","MTS","AMOUNT","RATE_DAILY","PERIOD"]
[340483549,1729291892607,-698.53,0.00027397,7]
[340483550,1729291892619,-698.53,0.00027397,7]
[340483551,1729291892630,-698.53,0.00027397,7]
[340483552,1729291892640,-698.53,0.00027397,7]
[340483553,1729291892649,-698.53,0.00027397,7]
[340483554,1729291892659,-698.53,0.00027397,7]
[340483555,1729291892668,-698.53,0.00027397,7]
[340483556,1729291892679,-698.53,0.00027397,7]
[340483557,1729291892691,-698.53,0.00027397,7]
[340483558,1729291892701,-698.53,0.00027397,7]
[340483559,1729291892711,-698.53,0.00027397,7]
[340483560,1729291892720,-698.53,0.00027397,7]
[340483561,1729291892734,-698.64273329,0.00027397,7]
[340483562,1729291892744,-1262.17,0.00027397,2]
[340483563,1729291892753,-1262.17,0.00027397,2]
[340483564,1729291892763,-1262.17,0.00027397,2]
[340483565,1729291892772,-1262.17,0.00027397,2]
[340483566,1729291892781,-1262.17,0.00027397,2]
[340483567,1729291892790,-1262.17,0.00027397,2]
[340483568,1729291892801,-1262.17,0.00027397,2]
[340483569,1729291892810,-1262.17,0.00027397,2]
[340483570,1729291892820,-1262.17,0.00027397,2]
[340483571,1729291892830,-1262.17,0.00027397,2]
[340483572,1729291892840,-1262.17,0.00027397,2]
[340483573,1729291892849,-1262.17,0.00027397,2]
[340483574,1729291892859,-1262.17,0.00027397,2]
[340483575,1729291892869,-1262.17,0.00027397,2]
[340483576,1729291892878,-1262.17,0.00027397,2]
[340483577,1729291892888,-1262.17,0.00027397,2]
[340483578,1729291892897,-1262.17,0.00027397,2]
[340483579,1729291892907,-1262.17,0.00027397,2]
[340483580,1729291892916,-1262.17,0.00027397,2]
[340483581,1729291892928,-1262.17,0.00027397,2]
[340483582,1729291892938,-1262.17,0.00027397,2]
[340483583,1729291892947,-1262.17,0.00027397,2]
[340483584,1729291892956,-1262.17,0.00027397,2]
[340483585,1729291892966,-1262.31131132,0.00027397,2]
[340483586,1729291892976,-1000.0,0.00027397,2]
[340483587,1729291892994,-1000.0,0.00027397,2]
[340483588,1729291893004,-1000.0,0.00027397,2]
[340483589,1729291893014,-1000.0,0.00027397,2]
[340483590,1729291893024,-1000.0,0.00027397,2]
[340483591,1729291893035,-1000.0,0.00027397,2]
[340483592,1729291893044,-1000.0,0.00027397,2]
[340483593,1729291893054,-1000.0,0.00027397,2]
[340483594,1729291893064,-1000.0,0.00027397,2]
[340483595,1729291893073,-1000.0,0.00027397,2]
[340483596,1729291893084,-1000.0,0.00027397,2]
[340483597,1729291893094,-1000.0,0.00027397,2]
[340483598,1729291893104,-1000.0,0.00027397,2]
[340483599,1729291893114,-1000.0,0.00027397,2]
[340483600,1729291893123,-1000.0,0.00027397,2]
[340483601,1729291893133,-1000.0,0.00027397,2]
[340483602,1729291893143,-1000.0,0.00027397,2]
[340483603,1729291893154,-1000.0,0.00027397,2]
[340483604,1729291893163,-1000.0,0.00027397,2]
[340483605,1729291893174,-1000.0,0.00027397,2]
[340483606,1729291893184,-1000.0,0.00027397,2]
[340483607,1729291893193,-1000.0,0.00027397,2]
[340483608,1729291893203,-251.03390587,0.00027397,2]
[340483609,1729291893214,-1500.0,0.00027534,5]
[340483610,1729291893224,-151.0,0.00027893,3]
[340483611,1729291893236,-210.4166343,0.00027945,2]
[340483612,1729291893245,-300.0,0.00028,2]
[340483613,1729291893256,-160.0,0.00028,2]
[340483614,1729291893267,-166.08,0.00028,31]
[340483615,1729291893278,-166.08,0.00028,31]
[340483616,1729291893288,-1063.5170964,0.00028025,2]
[340483617,1729291893298,-677.12611083,0.00028455,2]
[340483618,1729291893310,-1644.0,0.00028477,2]
[340483619,1729291893320,-1500.0,0.00028493,6]
[340483620,1729291893332,-1063.5170964,0.00028525,2]
[340483621,1729291893342,-302.1038448,0.00028547,2]
[340483622,1729291893351,-831.15,0.000287,14]
[340483623,1729291893362,-166.08,0.000287,31]
[340483624,1729291893373,-166.08,0.000287,31]
[340483625,1729291893382,-221.0,0.00028756,2]
[340483626,1729291893392,-600.0,0.000288,2]
[340483627,1729291893402,-2547.07,0.000288,30]
[340483628,1729291893413,-527.0,0.0002891,2]
[340483629,1729291893425,-1137.0,0.0002891,2]
[340483630,1729291893435,-1805.0,0.0002891,2]
[340483631,1729291893445,-151.0,0.00028947,4]
[340483632,1729291893455,-221.0,0.00028997,2]
[340483633,1729291893465,-300.0,0.00029,2]
[340483634,1729291893475,-1000.0,0.00029,2]
[340483635,1729291893485,-1063.5170964,0.00029025,2]
[340483636,1729291893495,-600.0,0.000291,2]
[340483637,1729291893505,-2512.36,0.0002927,30]
[340483638,1729291893516,-363.5609104,0.00029342,2]
[340483639,1729291893526,-166.08,0.000294,31]
[340483640,1729291893536,-166.08,0.000294,31]
[340483641,1729291893545,-166.08,0.000294,31]
[340483642,1729291893555,-600.0,0.000294,2]
[340483643,1729291893566,-1500.0,0.00029452,7]
[340483644,1729291893575,-2496.89707295,0.00029464,2]
[340483645,1729291893584,-1002.0,0.000295,30]
[340483646,1729291893593,-153.77835453,0.000295,30]
[340483647,1729291893603,-1063.5170964,0.00029525,2]
[340483648,1729291893614,-1017.0052975,0.00029554,2]
[340483649,1729291893625,-600.0,0.000297,2]
[340483650,1729291893634,-80186.16963057,0.0002999,2]
[340483651,1729291893644,-179454.47169866,0.0003,7]
[340483705,1729293032054,-473.16630809,0.00013698,2]
[340483817,1729293039875,-96.01369191,0.00013698,2]
[340483819,1729293039885,-500.0,0.00013698,2]
[340483820,1729293039894,-500.0,0.00013698,2]
[340483821,1729293039904,-250.0,0.00013699,2]
[340483822,1729293039914,-569.18,0.00013972,2]
[340483823,1729293039923,-500.0,0.00013972,2]
[340483824,1729293039932,-391.93519331,0.00013972,2]
[340483825,1729293039942,-569.18,0.00014246,2]
[340483826,1729293039952,-500.0,0.00014246,2]
[340483827,1729293039964,-569.18,0.0001452,2]
[340483828,1729293039974,-500.0,0.0001452,2]
[340483829,1729293039983,-569.18,0.00014794,2]
[340483830,1729293039992,-500.0,0.00014794,2]
[340483831,1729293040002,-569.18,0.00015068,2]
[340483832,1729293040012,-500.0,0.00015068,2]
[340483833,1729293040022,-569.18,0.00015342,2]
[340483834,1729293040031,-500.0,0.00015342,2]
[340483835,1729293040041,-527.0,0.00015541,2]
[340483836,1729293040050,-1643.525,0.00015541,2]
[340483837,1729293040059,-549.16160332,0.00015615,2]
[340483838,1729293040068,-500.0,0.00015615,2]
[340483839,1729293040077,-500.0,0.00015615,2]
[340483840,1729293040087,-595.65,0.00015615,2]
[340483841,1729293040096,-500.0,0.00015615,2]
[340483842,1729293040105,-500.0,0.00015615,2]
[340483843,1729293040114,-500.0,0.00015615,2]
[340483844,1729293040123,-500.0,0.00015615,2]
[340483845,1729293040133,-526.74,0.00015615,2]
[340483846,1729293040142,-555.51498041,0.00015615,2]
[340483847,1729293040152,-500.0,0.00015615,2]
[340483848,1729293040161,-569.18,0.00015616,2]
[340483849,1729293040170,-500.0,0.00015616,2]
[340483850,1729293040179,-500.0,0.00015889,2]
[340483851,1729293040189,-500.0,0.00015889,2]
[340483852,1729293040198,-595.65,0.00015889,2]
[340483853,1729293040211,-500.0,0.00015889,2]
[340483854,1729293040221,-500.0,0.00015889,2]
[340483855,1729293040230,-500.0,0.00015889,2]
[340483856,1729293040239,-500.0,0.00015889,2]
[340483857,1729293040248,-500.0,0.00015889,2]
[340483858,1729293040257,-569.18,0.0001589,2]
[340483859,1729293040267,-500.0,0.0001589,2]
[340483860,1729293040276,-624.22426829,0.00016063,2]
[340483861,1729293040285,-500.0,0.00016163,2]
[340483862,1729293040295,-500.0,0.00016163,2]
[340483863,1729293040304,-595.65,0.00016163,2]
[340483864,1729293040314,-500.0,0.00016163,2]
[340483865,1729293040324,-500.0,0.00016163,2]
[340483866,1729293040334,-153.79,0.00016163,2]
[340483867,1729293040343,-500.0,0.00016163,2]
[340483868,1729293040352,-500.0,0.00016163,2]
[340483869,1729293040362,-569.18,0.00016164,2]
[340483870,1729293040371,-500.0,0.00016164,2]
[340483871,1729293040381,-500.0,0.00016437,2]
[340483872,1729293040395,-500.0,0.00016437,2]
[340483873,1729293040405,-595.65,0.00016437,2]
[340483874,1729293040416,-543.97929527,0.00016437,2]
[340483875,1729293040427,-500.0,0.00016437,2]
[340483876,1729293040437,-500.0,0.00016437,2]
[340483877,1729293040447,-467.77313466,0.00016437,2]
[340483878,1729293040459,-569.18,0.00016438,2]
[340483879,1729293040470,-500.0,0.00016438,2]
[340483880,1729293040481,-500.0,0.00016711,2]
[340483881,1729293040491,-500.0,0.00016711,2]
[340483882,1729293040503,-595.65,0.00016711,2]
[340483883,1729293040513,-500.0,0.00016711,2]
[340483884,1729293040524,-500.0,0.00016711,2]
[340483885,1729293040536,-569.18,0.00016712,2]
[340483886,1729293040546,-500.0,0.00016712,2]
[340483887,1729293040557,-500.0,0.00016985,2]
[340483888,1729293040567,-619.33136857,0.00016985,2]
[340483889,1729293040578,-595.65,0.00016985,2]
[340483890,1729293040587,-500.0,0.00016985,2]
[340483891,1729293040597,-500.0,0.00016985,2]
[340483892,1729293040609,-569.18,0.00016986,2]
[340483893,1729293040619,-500.0,0.00016986,2]
[340483894,1729293040630,-500.0,0.00017259,2]
[340483895,1729293040641,-595.65,0.00017259,2]
[340483896,1729293040652,-500.0,0.00017259,2]
[340483897,1729293040662,-500.0,0.00017259,2]
[340483898,1729293040675,-569.18,0.0001726,2]
[340483899,1729293040685,-500.0,0.0001726,2]
[340483900,1729293040697,-500.0,0.00017533,2]
[340483901,1729293040706,-595.65,0.00017533,2]
[340483902,1729293040716,-500.0,0.00017533,2]
[340483903,1729293040726,-500.0,0.00017533,2]
[340483904,1729293040735,-569.18,0.00017534,2]
[340483905,1729293040745,-500.0,0.00017534,2]
[340483906,1729293040756,-500.0,0.00017807,2]
[340483907,1729293040768,-595.65,0.00017807,2]
[340483908,1729293040777,-500.0,0.00017807,2]
[340483909,1729293040787,-500.0,0.00017807,2]
[340483910,1729293040797,-569.18,0.00017808,2]
[340483911,1729293040807,-500.0,0.00017808,2]
[340483912,1729293040816,-500.0,0.00018081,2]
[340483913,1729293040825,-595.65,0.00018081,2]
[340483914,1729293040834,-356.44722802,0.00018081,2]
[340483915,1729293040843,-500.0,0.00018081,2]
[340483916,1729293040853,-569.18,0.00018082,2]
[340483917,1729293040862,-464.03168417,0.00018082,2]
[340483918,1729293040873,-500.0,0.00018355,2]
[340483919,1729293040882,-595.65,0.00018355,2]
[340483920,1729293040892,-500.0,0.00018355,2]
[340483921,1729293040903,-569.18,0.00018356,2]
[340483922,1729293040912,-501.0,0.00018541,2]
[340483923,1729293040922,-500.0,0.00018629,2]
[340483924,1729293041094,-595.65,0.00018629,2]
[340483925,1729293041141,-500.0,0.00018629,2]
[340483926,1729293041151,-569.18,0.0001863,2]
[340483927,1729293041160,-624.22426823,0.00018835,2]
[340483928,1729293041171,-500.0,0.00018903,2]
[340483929,1729293041183,-595.65,0.00018903,2]
[340483930,1729293041193,-500.0,0.00018903,2]
[340483931,1729293041204,-569.18,0.00018904,2]
[340483932,1729293041216,-555.37741256,0.00019177,2]
[340483933,1729293041227,-595.65,0.00019177,2]
[340483934,1729293041237,-500.0,0.00019177,2]
[340483935,1729293041246,-569.18,0.00019178,2]
[340483936,1729293041256,-153.0,0.00019178,2]
[340483937,1729293041265,-294.956655,0.00019178,2]
[340483938,1729293041274,-595.65,0.00019451,2]
[340483939,1729293041283,-500.0,0.00019451,2]
[340483940,1729293041295,-569.18,0.00019452,2]
[340483941,1729293041305,-595.65,0.00019725,2]
[340483942,1729293041315,-500.0,0.00019725,2]
[340483943,1729293041325,-569.18,0.00019726,2]
[340483944,1729293041335,-595.65,0.00019999,2]
[340483945,1729293041344,-500.0,0.00019999,2]
[340483946,1729293041355,-569.40214064,0.0002,2]
[340483947,1729293041365,-250.0,0.00020187,2]
[340483948,1729293041375,-595.65,0.00020273,2]
[340483949,1729293041389,-500.0,0.00020273,2]
[340483950,1729293041400,-595.65,0.00020547,2]
[340483951,1729293041409,-500.0,0.00020547,2]
[340483952,1729293041420,-595.65,0.00020821,2]
[340483953,1729293041433,-500.0,0.00020821,2]
[340483954,1729293041442,-595.65,0.00021095,2]
[340483955,1729293041452,-500.0,0.00021095,2]
[340483956,1729293041466,-595.65,0.00021369,2]
[340483957,1729293041476,-408.25391956,0.00021369,2]
[340483958,1729293041487,-500.0,0.0002142,2]
[340483959,1729293041497,-624.22426823,0.00021606,2]
[340483960,1729293041507,-595.65,0.00021643,2]
[340483961,1729293041518,-595.75019581,0.00021916,2]
[340483962,1729293041529,-166.666666,0.00021918,2]
[340483963,1729293041540,-349.08,0.000224,7]
[340483964,1729293041549,-166.666666,0.00022431,2]
[340483965,1729293041559,-166.666666,0.00022944,2]
[340483966,1729293041567,-166.666666,0.00023456,2]
[340483967,1729293041577,-166.666666,0.00023969,2]
[340483968,1729293041587,-624.22426823,0.00024378,2]
[340483969,1729293041596,-166.666666,0.00024482,2]
[340483970,1729293041605,-1500.0,0.00024657,2]
[340483971,1729293041616,-660.0,0.00024658,2]
[340483972,1729293041626,-300.0,0.00025,2]
[340483973,1729293041636,-300.0,0.00025,2]
[340483974,1729293041645,-255.5,0.00025,2]
[340483975,1729293041654,-160.75037099,0.0002503,2]
[340483976,1729293041664,-1500.0,0.00025616,3]
[340483977,1729293041673,-300.0,0.00026,2]
[340483978,1729293041682,-294.956655,0.00026388,2]
[340483979,1729293041691,-1500.0,0.00026575,4]
[340483980,1729293041700,-250.0,0.00026676,2]
[340483981,1729293041710,-297.838,0.000269,14]
[340483982,1729293041719,-300.0,0.00027,2]
[340483983,1729293041729,-624.22426823,0.0002715,2]
[340483984,1729293041738,-840.68866587,0.00027173,14]
[340483985,1729293041747,-1500.0,0.00027534,5]
[340483986,1729293041756,-300.0,0.00028,2]
[340483987,1729293041765,-1500.0,0.00028493,6]
[340483988,1729293041774,-500.0,0.000285,2]
[340483989,1729293041784,-290.9,0.000286,14]
[340483990,1729293041793,-1154.24446238,0.000288,2]
[340483991,1729293041804,-186.48903206,0.00028975,30]
[340483992,1729293041814,-300.0,0.00029,2]
[340483993,1729293041824,-563.517097,0.00029,2]
[340483994,1729293041836,-173.47,0.00029432,3]
[340483995,1729293041847,-693.86,0.00029442,3]
[340483996,1729293041858,-346.93,0.00029442,3]
[340483997,1729293041868,-1500.0,0.00029452,7]
[340483998,1729293041879,-308.8244125,0.00029562,2]
[340483999,1729293041890,-60725.1,0.00029641,10]
[340484000,1729293041901,-500.0,0.0002965,2]
[340484001,1729293041912,-153.69155306,0.0002965,2]
[340484002,1729293041922,-500.0,0.0002965,2]
[340484003,1729293041932,-613.99126276,0.0002965,2]
[340484004,1729293041942,-72870.12,0.00029651,10]
[340484005,1729293041953,-41740.46,0.00029661,10]
[340484006,1729293041963,-532.03,0.00029681,3]
[340484007,1729293041974,-177.33,0.00029691,3]
[340484008,1729293041984,-875.08,0.00029701,3]
[340484009,1729293041993,-757.63636849,0.00029731,8]
[340484010,1729293042002,-757.64394553,0.00029731,8]
[340484011,1729293042013,-46644.8861247,0.0002981,4]
[340484012,1729293042023,-749.8166324,0.0002981,4]
[340484013,1729293042034,-23322.4430624,0.0002982,4]
[340484014,1729293042044,-374.9083162,0.0002982,4]
[340484015,1729293042054,-527.22492612,0.0002982,5]
[340484016,1729293042063,-203.13783333,0.000299,2]
[340484017,1729293042073,-23322.4430624,0.0002991,4]
[340484018,1729293042084,-374.9083162,0.0002991,4]
[340484019,1729293042095,-624.22426823,0.00029922,2]
[340484020,1729293042106,-14661.76712683,0.0002994,4]
[340484066,1729293046062,-500.0,0.00015615,2]
[340484067,1729293046071,-276.55286853,0.00015889,2]
[340484102,1729294232184,-166.02456668,0.00010859,2]
[340484103,1729294232195,-300.0,0.00010958,2]
[340484104,1729294232206,-776.93,0.00010959,2]
[340484105,1729294232216,-776.93,0.00010959,2]
[340484106,1729294232227,-517.95,0.00010959,2]
[340484107,1729294232237,-166.02456666,0.00011731,2]
[340484108,1729294232247,-300.0,0.00012563,2]
[340484109,1729294232257,-7994.7774523,0.00012564,2]
[340484110,1729294232267,-166.02456666,0.00012602,2]
[340484111,1729294232276,-1139.7706436,0.00012702,2]
[340484113,1729294232287,-256.684486,0.00013699,2]
[340484115,1729294232297,-1233.126453,0.00013699,2]
[340484117,1729294232307,-250.0,0.00013699,2]
[340484119,1729294232316,-166.366708,0.00013742,2]
[340484122,1729294232335,-6720.7327073,0.00013748,2]
[340484124,1729294232346,-420.0,0.00013783,2]
[340484125,1729294232356,-166.366708,0.00013807,2]
[340484126,1729294232365,-166.366708,0.00013872,2]
[340484127,1729294232375,-166.366708,0.00013937,2]
[340484128,1729294232385,-166.366708,0.00014002,2]
[340484129,1729294232394,-166.366708,0.00014067,2]
[340484130,1729294232405,-166.366708,0.00014132,2]
[340484131,1729294232415,-166.366708,0.00014197,2]
[340484132,1729294232425,-166.366708,0.00014262,2]
[340484133,1729294232435,-166.366708,0.00014327,2]
[340484134,1729294232444,-1233.126453,0.00014384,2]
[340484135,1729294232454,-166.366708,0.00014392,2]
[340484136,1729294232464,-166.366708,0.00014458,2]
[340484137,1729294232474,-268.46,0.000148,2]
[340484138,1729294232485,-11388.02600106,0.00014999,2]
[340484144,1729294238291,-545.05576626,0.00014999,2]
[340484145,1729294238406,-1908.21871739,0.00014999,2]
[340484146,1729294238418,-1950.0,0.00014999,2]
[340484147,1729294238476,-35821.91374975,0.00014999,2]
[340484148,1729294238486,-4754.0606597,0.00015,5]
[340484149,1729294238498,-179.33236253,0.00015056,2]
[340484150,1729294238508,-2734.3036074,0.00015057,2]
[340484242,1729295432214,-300.0,0.00010958,2]
[340484243,1729295432224,-300.0,0.00010958,2]
[340484244,1729295432234,-529.04,0.00010959,2]
[340484245,1729295432244,-440.87,0.00010959,2]
[340484246,1729295432254,-367.39,0.00010959,2]
[340484247,1729295432264,-306.16,0.00010959,2]
[340484248,1729295432275,-255.13,0.00010959,2]
[340484249,1729295432285,-212.61,0.00010959,2]
[340484250,1729295432296,-177.18,0.00010959,2]
[340484251,1729295432307,-885.91,0.00010959,2]
[340484252,1729295432318,-420.0,0.00012042,2]
[340484253,1729295432330,-587.0,0.00013233,2]
[340484254,1729295432341,-1340.8111617,0.00013318,2]
[340484255,1729295432351,-250.0,0.00013699,2]
[340484256,1729295432361,-503.339254,0.00013699,2]
[340484257,1729295432370,-503.339254,0.00014384,2]
[340484258,1729295432381,-823.0,0.00014543,2]
[340484259,1729295432392,-241.61,0.000149,2]
[340484260,1729295432402,-162.10960189,0.00014938,2]
[340484261,1729295432417,-1395.83274792,0.00014947,2]
[340484263,1729295432433,-870.56136229,0.00014947,2]
[340484264,1729295432444,-589.09971645,0.00014955,2]
[340484265,1729295432454,-246.17090711,0.00015037,2]
[340484268,1729295438595,-253.82909289,0.00015037,2]
[340484269,1729295438606,-224.41766045,0.00015037,2]
[340484270,1729295438616,-172.54548005,0.00015037,2]
[340484271,1729295438625,-107418.28043381,0.00015037,2]
[340484272,1729295438640,-136392.81163096,0.00015037,2]
[340484273,1729295438654,-133294.67122123,0.00015037,2]
[340484274,1729295438667,-613.72617954,0.00015037,2]
[340484275,1729295438678,-125701.921095,0.00015045,2]
[340484276,1729295438689,-204.57539318,0.00015045,2]
[340484277,1729295438700,-500.0,0.00015046,2]
[340484278,1729295438710,-500.0,0.00015046,2]
[340484279,1729295438722,-541.73,0.00015046,2]
[340484280,1729295438735,-5402.26,0.00015046,2]
[340484281,1729295438744,-1784.95,0.00015046,2]
[340484282,1729295438755,-711.54,0.00015046,2]
[340484283,1729295438765,-1360.61,0.00015046,2]
[340484284,1729295438776,-528.29,0.00015046,2]
[340484285,1729295438789,-500.0,0.00015046,2]
[340484286,1729295438798,-1016.21,0.00015046,2]
[340484287,1729295438808,-500.0,0.00015046,2]
[340484288,1729295438823,-846.63,0.00015046,2]
[340484289,1729295438838,-44262.82,0.00015046,2]
[340484290,1729295438851,-5311.7,0.00015046,2]
[340484291,1729295438866,-500.0,0.00015046,2]
[340484292,1729295438879,-500.0,0.00015046,2]
[340484293,1729295438891,-825.66,0.00015047,2]
[340484294,1729295438903,-500.0,0.00015047,2]
[340484295,1729295438915,-500.0,0.00015047,2]
[340484296,1729295438929,-639.64,0.00015047,2]
[340484297,1729295438942,-643.04,0.00015047,2]
[340484298,1729295438953,-500.0,0.00015047,2]
[340484299,1729295438964,-500.0,0.00015047,2]
[340484300,1729295438977,-500.0,0.00015047,2]
[340484301,1729295438992,-500.0,0.00015047,2]
[340484302,1729295439004,-500.0,0.00015047,2]
[340484303,1729295439016,-590.76,0.00015047,2]
[340484304,1729295439029,-500.0,0.00015047,2]
[340484305,1729295439043,-500.0,0.00015047,2]
[340484306,1729295439058,-500.0,0.00015047,2]
[340484307,1729295439071,-500.0,0.00015047,2]
[340484308,1729295439084,-500.0,0.00015047,2]
[340484309,1729295439096,-500.0,0.00015047,2]
[340484310,1729295439108,-500.0,0.00015047,2]
[340484311,1729295439121,-363.27057995,0.00015047,2]
[340484312,1729295439133,-500.0,0.00015047,2]
[340484313,1729295439145,-500.0,0.00015047,2]
[340484314,1729295439157,-500.0,0.00015047,2]
[340484315,1729295439172,-1072.71,0.00015047,2]
[340484316,1729295439185,-1049.44,0.00015047,2]
[340484317,1729295439198,-552.3,0.00015047,2]
[340484318,1729295439209,-1191.42,0.00015047,2]
[340484319,1729295439219,-644.76,0.00015047,2]
[340484320,1729295439230,-500.0,0.00015047,2]
[340484321,1729295439241,-696.67,0.00015047,2]
[340484322,1729295439252,-500.0,0.00015047,2]
[340484323,1729295439263,-500.0,0.00015047,2]
[340484324,1729295439275,-500.0,0.00015047,2]
[340484325,1729295439287,-500.0,0.00015047,2]
[340484326,1729295439299,-500.0,0.00015047,2]
[340484327,1729295439312,-500.0,0.00015047,2]
[340484328,1729295439323,-1111.76,0.00015047,2]
[340484329,1729295439335,-1136.04,0.00015047,2]
[340484330,1729295439348,-409.15078636,0.00015047,2]
[340484331,1729295439361,-500.0,0.00015055,2]
[340484332,1729295439373,-500.0,0.00015055,2]
[340484333,1729295439386,-608.5,0.00015055,2]
[340484334,1729295439398,-500.0,0.00015055,2]
[340484335,1729295439410,-500.0,0.00015055,2]
[340484336,1729295439425,-772.74,0.00015055,2]
[340484337,1729295439436,-306.60076988,0.00015055,2]
[340484338,1729295439447,-521.85,0.00015055,2]
[340484339,1729295439459,-500.0,0.00015055,2]
[340484340,1729295439472,-1524.26,0.00015056,2]
[340484341,1729295439484,-628.06,0.00015056,2]
[340484342,1729295439498,-161.48918165,0.00015056,2]
[340484343,1729295439523,-500.0,0.00015056,2]
[340484344,1729295439539,-537.56,0.00015056,2]
[340484345,1729295439553,-500.0,0.00015056,2]
[340484346,1729295439564,-241.1106976,0.00015056,2]
[340484448,1729296638572,-250.0,0.00013699,2]
[340484450,1729296638582,-167.779751,0.00013939,2]
[340484452,1729296638591,-167.779751,0.00014624,2]
[340484453,1729296638600,-1983.09484646,0.00014927,2]
[340484454,1729296638610,-79.47747759,0.00015,2]
[340484455,1729296638628,-137.97252241,0.00015,2]
[340484456,1729296638638,-300.0,0.00015023,2]
[340484457,1729296638648,-500.0,0.00015023,2]
[340484458,1729296638658,-172.54548006,0.00015024,2]
[340484459,1729296638668,-2978.03121199,0.00015024,2]
[340484460,1729296638784,-1148.725005,0.00015024,2]
[340484461,1729296638795,-1089.4560012,0.00015024,2]
[340484462,1729296638807,-1080.23999965,0.00015024,2]
[340484495,1729296643732,-16632.99260276,0.00015024,2]
[340484567,1729297840735,-250.0,0.00013699,2]
[340484568,1729297840747,-167.779751,0.00013935,2]
[340484569,1729297840757,-111.91000791,0.00014896,2]
[340484693,1729299955740,-224.41766044,0.00013597,2]
[340484694,1729299955767,-300.0,0.00013597,2]
[340484695,1729299955791,-15953.60805766,0.00013598,2]
[340484696,1729299955816,-256.684486,0.00013699,2]
[340484697,1729299955841,-250.0,0.00013699,2]
[340484698,1729299955866,-339.671918,0.00013699,2]
[340484699,1729299955893,-339.671918,0.00014384,2]
[340484700,1729299955919,-458.78112095,0.00014862,2]
[340484701,1729299955945,-597.90235587,0.00014875,2]
[340484702,1729299955970,-500.0,0.00014875,2]
[340484703,1729299955993,-500.0,0.00014875,2]
[340484704,1729299956015,-1788.18,0.00014875,2]
[340484705,1729299956040,-1363.08,0.00014875,2]
[340484706,1729299956062,-500.0,0.00014875,2]
[340484707,1729299956084,-541.64,0.0001488,2]
[340484708,1729299956108,-5409.94,0.0001488,2]
[340484709,1729299956132,-172.54548006,0.00014881,2]
[340484710,1729299956159,-827.15,0.00014881,2]
[340484711,1729299956182,-500.0,0.00014881,2]
[340484712,1729299956206,-644.21,0.00014881,2]
[340484713,1729299956235,-640.8,0.00014881,2]
[340484714,1729299956260,-502.15774955,0.00014881,2]
[340484715,1729299956284,-500.0,0.00014881,2]
[340484716,1729299956305,-500.0,0.00014881,2]
[340484717,1729299956327,-500.0,0.00014881,2]
[340484718,1729299956354,-44245.03,0.00014881,2]
[340484719,1729299956375,-500.0,0.00014881,2]
[340484720,1729299956399,-5321.32,0.00014881,2]
[340484721,1729299956422,-500.0,0.00014881,2]
[340484722,1729299956444,-500.0,0.00014881,2]
[340484723,1729299956468,-151.0,0.00014881,2]
[340484724,1729299956493,-151.0,0.00014881,2]
[340484725,1729299956516,-153.02516,0.00014881,2]
[340484726,1729299956539,-151.0,0.00014881,2]
[340484727,1729299956562,-151.0,0.00014881,2]